fUST/lending_fUST_20250606
["ID","MTS","AMOUNT","RATE_DAILY","PERIOD"]
[364618219,1749164742306,-300.0,0.00019869,2]
[364618220,1749164742331,-4725.87880102,0.0001987,2]
[364618221,1749164825148,-206.47763657,0.0001977,2]
[364618222,1749164848073,-23.48302225,0.0001977,2]
[364618223,1749164848095,-300.0,0.00019869,2]
[364618224,1749164848116,-274.12119898,0.0001987,2]
[364618225,1749164848137,-430.0,0.0001987,2]
[364618226,1749164848157,-300.0,0.0001987,2]
[364618227,1749164848178,-461.7281109,0.0001987,2]
[364618228,1749164848201,-440.0,0.0001987,2]
[364618229,1749164848223,-440.0,0.0001987,2]
[364618230,1749164848244,-430.0,0.0001987,2]
[364618231,1749164848268,-440.0,0.0001987,2]
[364618232,1749164848290,-476.36,0.0001987,2]
[364618233,1749164848311,-440.0,0.0001987,2]
[364618234,1749164848333,-497.0,0.0001987,2]
[364618235,1749164848360,-430.0,0.0001987,2]
[364618236,1749164848392,-440.0,0.0001987,2]
[364618237,1749164848417,-430.0,0.0001987,2]
[364618238,1749164848442,-286.05665174,0.0001987,2]
[364618239,1749164849088,-153.94334826,0.0001987,2]
[364618240,1749164849113,-440.0,0.0001987,2]
[364618241,1749164849137,-248.69787325,0.0001987,2]
[364618245,1749164964243,-181.30212675,0.0001987,2]
[364618246,1749164964270,-430.0,0.0001987,2]
[364618247,1749164964293,-420.0,0.0001987,2]
[364618248,1749164964315,-430.0,0.0001987,2]
[364618249,1749164964338,-299.0,0.0001987,2]
[364618250,1749164964361,-430.0,0.0001987,2]
[364618251,1749164964383,-430.0,0.0001987,2]
[364618252,1749164964405,-24900.0,0.00019871,2]
[364618253,1749164964428,-7072.33860532,0.00019935,2]
[364618254,1749164964450,-181.684091,0.0001998,2]
[364618255,1749164964475,-440.0,0.00020144,2]
[364618256,1749164964499,-440.0,0.00020144,2]
[364618257,1749164964525,-440.0,0.00020144,2]
[364618258,1749164964546,-420.0,0.00020144,2]
[364618259,1749164964572,-440.0,0.00020144,2]
[364618260,1749164964596,-440.0,0.00020144,2]
[364618261,1749164964618,-440.0,0.00020144,2]
[364618262,1749164964639,-194.639589,0.00020187,2]
[364618263,1749164964665,-440.0,0.00020418,2]
[364618264,1749164964690,-440.0,0.00020418,2]
[364618265,1749164964714,-440.0,0.00020418,2]
[364618266,1749164964741,-155.2524436,0.00020418,2]
[364618283,1749165032622,-8479.6101914,0.00019745,2]
[364618284,1749165032632,-539.59,0.0001987,2]
[364618285,1749165032642,-440.0,0.0001987,2]
[364618286,1749165032652,-440.0,0.0001987,2]
[364618287,1749165032661,-440.0,0.0001987,2]
[364618288,1749165032671,-430.0,0.0001987,2]
[364618289,1749165032683,-440.0,0.00020144,2]
[364618291,1749165032694,-440.0,0.00020144,2]
[364618292,1749165032704,-440.0,0.00020144,2]
[364618293,1749165032715,-300.0,0.00020417,2]
[364618294,1749165032724,-300.0,0.00020417,2]
[364618295,1749165032734,-1200.0,0.00020417,2]
[364618296,1749165032743,-284.7475564,0.00020418,2]
[364618297,1749165032757,-440.0,0.00020418,2]
[364618298,1749165032768,-440.0,0.00020418,2]
[364618299,1749165032777,-155.0,0.00020418,2]
[364618300,1749165032787,-440.0,0.00020418,2]
[364618301,1749165032796,-380.0,0.00020418,2]
[364618302,1749165032806,-380.0,0.00020418,2]
[364618303,1749165032815,-500.0,0.00020488,2]
[364618304,1749165032826,-279.27903505,0.00020505,2]
[364618305,1749165032835,-842.5625,0.00020629,2]
[364618306,1749165032845,-160.0,0.00020629,2]
[364618307,1749165032857,-160.0,0.00020629,2]
[364618308,1749165032867,-440.0,0.00020692,2]
[364618309,1749165032876,-440.0,0.00020692,2]
[364618310,1749165032886,-440.0,0.00020692,2]
[364618311,1749165032895,-440.0,0.00020692,2]
[364618312,1749165032904,-14953.76349316,0.00020692,2]
[364618313,1749165032914,-440.0,0.00020708,2]
[364618314,1749165032923,-522.87495429,0.000209,4]
[364618315,1749165032933,-440.0,0.00020966,2]
[364618316,1749165032942,-440.0,0.00020966,2]
[364618317,1749165032951,-440.0,0.00020966,2]
[364618318,1749165032960,-155.0,0.00020966,2]
[364618319,1749165032969,-440.0,0.00020966,2]
[364618320,1749165032979,-229.48950782,0.00020978,2]
[364618321,1749165032988,-500.0,0.00020979,2]
[364618322,1749165032997,-430.0,0.00020979,2]
[364618323,1749165033007,-430.0,0.00020979,2]
[364618324,1749165033017,-430.0,0.00020979,2]
[364618325,1749165033026,-430.0,0.00020979,2]
[364618326,1749165033036,-430.0,0.00020979,2]
[364618327,1749165033046,-430.0,0.00020979,2]
[364618328,1749165033055,-430.0,0.00020979,2]
[364618329,1749165033064,-430.0,0.00020979,2]
[364618330,1749165033075,-430.0,0.00020979,2]
[364618331,1749165033085,-430.0,0.00020979,2]
[364618332,1749165033095,-430.0,0.00020979,2]
[364618333,1749165033104,-430.0,0.00020979,2]
[364618334,1749165033114,-380.0,0.00020979,2]
[364618335,1749165033124,-430.0,0.00020979,2]
[364618336,1749165033134,-430.0,0.00020979,2]
[364618337,1749165033148,-430.0,0.00020979,2]
[364618338,1749165033158,-392.13753428,0.00020979,2]
[364618339,1749165033168,-434.17597996,0.00020979,2]
[364618340,1749165033178,-430.0,0.00020979,2]
[364618341,1749165033188,-430.0,0.00020979,2]
[364618342,1749165033197,-463.06820166,0.00020979,2]
[364618344,1749165033207,-430.0,0.00020979,2]
[364618345,1749165033216,-440.0,0.00020979,2]
[364618346,1749165033226,-440.0,0.00020979,2]
[364618347,1749165033236,-440.0,0.00020979,2]
[364618348,1749165033246,-430.0,0.00020979,2]
[364618349,1749165033255,-430.0,0.00020979,2]
[364618350,1749165033264,-453.56313406,0.00020979,2]
[364618351,1749165033274,-430.0,0.00020979,2]
[364618352,1749165033284,-430.0,0.00020979,2]
[364618353,1749165033294,-430.0,0.00020979,2]
[364618354,1749165033304,-214.72553952,0.00020979,2]
[364618355,1749165033314,-440.0,0.00020979,2]
[364618356,1749165033324,-430.0,0.00020979,2]
[364618357,1749165033334,-392.43320601,0.00020979,2]
[364618358,1749165033489,-430.0,0.00020979,2]
[364618359,1749165033499,-430.0,0.00020979,2]
[364618360,1749165033509,-430.0,0.00020979,2]
[364618361,1749165033519,-430.0,0.00020979,2]
[364618362,1749165033530,-430.0,0.00020979,2]
[364618363,1749165033540,-430.0,0.00020979,2]
[364618364,1749165033550,-430.0,0.00020979,2]
[364618365,1749165033559,-430.0,0.00020979,2]
[364618366,1749165033571,-431.65963659,0.00020979,2]
[364618367,1749165033581,-430.0,0.00020979,2]
[364618368,1749165033591,-430.0,0.00020979,2]
[364618369,1749165033602,-430.0,0.00020979,2]
[364618370,1749165033612,-430.0,0.00020979,2]
[364618371,1749165033622,-500.0,0.00020979,2]
[364618372,1749165033632,-430.0,0.00020979,2]
[364618373,1749165033642,-430.0,0.00020979,2]
[364618374,1749165033652,-430.0,0.00020979,2]
[364618375,1749165033662,-430.0,0.00020979,2]
[364618376,1749165033677,-430.0,0.00020979,2]
[364618377,1749165033687,-430.0,0.00020979,2]
[364618378,1749165033696,-430.0,0.00020979,2]
[364618379,1749165033706,-430.0,0.00020979,2]
[364618380,1749165033717,-452.05,0.00020979,2]
[364618381,1749165033727,-430.0,0.00020979,2]
[364618382,1749165033738,-430.0,0.00020979,2]
[364618383,1749165033748,-430.0,0.00020979,2]
[364618384,1749165033757,-430.0,0.00020979,2]
[364618385,1749165033768,-567.69,0.00020979,2]
[364618386,1749165033778,-430.0,0.00020979,2]
[364618387,1749165033788,-430.0,0.00020979,2]
[364618388,1749165033797,-430.0,0.00020979,2]
[364618389,1749165033807,-430.0,0.00020979,2]
[364618390,1749165033817,-430.0,0.00020979,2]
[364618391,1749165033828,-430.0,0.00020979,2]
[364618392,1749165033839,-430.0,0.00020979,2]
[364618393,1749165033848,-440.0,0.00020979,2]
[364618394,1749165033858,-518.68389446,0.00020979,2]
[364618395,1749165033867,-430.0,0.00020979,2]
[364618396,1749165033882,-430.0,0.00020979,2]
[364618397,1749165033892,-430.0,0.00020979,2]
[364618398,1749165033901,-430.0,0.00020979,2]
[364618399,1749165033911,-315.7105575,0.00020979,2]
[364618400,1749165033921,-430.0,0.00020979,2]
[364618401,1749165033931,-430.0,0.00020979,2]
[364618402,1749165033941,-430.0,0.00020979,2]
[364618403,1749165033951,-430.0,0.00020979,2]
[364618404,1749165033960,-561.81940469,0.00020979,2]
[364618405,1749165033970,-430.0,0.00020979,2]
[364618406,1749165033979,-315.01552021,0.00020979,2]
[364618407,1749165033989,-183.069,0.0002098,2]
[364618408,1749165033998,-440.0,0.0002098,2]
[364618409,1749165034009,-457.02,0.0002098,2]
[364618410,1749165034019,-440.0,0.0002098,2]
[364618411,1749165034029,-430.0,0.0002098,2]
[364618412,1749165034039,-440.0,0.0002098,2]
[364618413,1749165034048,-440.0,0.0002098,2]
[364618414,1749165034058,-440.0,0.0002098,2]
[364618415,1749165034068,-430.0,0.00020981,2]
[364618416,1749165034078,-500.0,0.00020981,2]
[364618417,1749165034088,-430.0,0.00020981,2]
[364618418,1749165034098,-430.0,0.00020981,2]
[364618419,1749165034108,-430.0,0.00020981,2]
[364618420,1749165034117,-430.0,0.00020981,2]
[364618421,1749165034127,-430.0,0.00020981,2]
[364618422,1749165034136,-430.0,0.00020981,2]
[364618423,1749165034146,-430.0,0.00020981,2]
[364618424,1749165034156,-430.0,0.00020981,2]
[364618425,1749165034165,-430.0,0.00020981,2]
[364618426,1749165034175,-430.0,0.00020981,2]
[364618427,1749165034184,-430.0,0.00020981,2]
[364618428,1749165034194,-500.0,0.00020981,2]
[364618429,1749165034204,-430.0,0.00020981,2]
[364618430,1749165034215,-430.0,0.00020981,2]
[364618431,1749165034225,-430.0,0.00020981,2]
[364618432,1749165034235,-430.0,0.00020981,2]
[364618433,1749165034244,-430.0,0.00020981,2]
[364618434,1749165034254,-498.40816944,0.00020981,2]
[364618435,1749165034264,-430.0,0.00020981,2]
[364618436,1749165034274,-430.0,0.00020981,2]
[364618437,1749165034283,-430.0,0.00020981,2]
[364618438,1749165034293,-453.43897535,0.00020981,2]
[364618439,1749165034303,-430.0,0.00020981,2]
[364618440,1749165034313,-430.0,0.00020981,2]
[364618441,1749165034323,-430.0,0.00020981,2]
[364618442,1749165034332,-430.0,0.00020981,2]
[364618443,1749165034342,-430.0,0.00020981,2]
[364618444,1749165034352,-430.0,0.00020981,2]
[364618445,1749165034362,-450.0,0.00020981,2]
[364618446,1749165034371,-430.0,0.00020981,2]
[364618447,1749165034381,-430.0,0.00020981,2]
[364618448,1749165034392,-430.0,0.00020981,2]
[364618449,1749165034402,-430.0,0.00020981,2]
[364618450,1749165034412,-430.0,0.00020981,2]
[364618451,1749165034421,-430.0,0.00020981,2]
[364618452,1749165034433,-349.48523347,0.00020981,2]
[364618453,1749165034443,-430.80705133,0.00020981,2]
[364618454,1749165034453,-430.0,0.00020981,2]
[364618455,1749165034463,-450.0,0.00020981,2]
[364618456,1749165034474,-430.0,0.00020981,2]
[364618457,1749165034482,-440.0,0.00020981,2]
[364618458,1749165034492,-430.0,0.00020981,2]
[364618459,1749165034501,-430.0,0.00020981,2]
[364618460,1749165034511,-430.0,0.00020981,2]
[364618461,1749165034521,-430.0,0.00020981,2]
[364618462,1749165034532,-430.0,0.00020981,2]
[364618463,1749165034542,-430.0,0.00020981,2]
[364618464,1749165034551,-430.0,0.00020981,2]
[364618465,1749165034561,-430.0,0.00020981,2]
[364618466,1749165034571,-440.0,0.00020981,2]
[364618467,1749165034582,-440.0,0.00020981,2]
[364618468,1749165034591,-430.0,0.00020981,2]
[364618469,1749165034602,-430.0,0.00020981,2]
[364618470,1749165034611,-430.0,0.00020981,2]
[364618471,1749165034621,-230.0,0.00020981,2]
[364618472,1749165034631,-440.0,0.00020981,2]
[364618473,1749165034642,-440.0,0.00020981,2]
[364618474,1749165034651,-430.0,0.00020981,2]
[364618475,1749165034662,-430.0,0.00020981,2]
[364618476,1749165034673,-440.0,0.00020982,2]
[364618477,1749165034685,-500.0,0.00020995,2]
[364618478,1749165034695,-522.87495418,0.00021038,4]
[364618479,1749165034705,-522.87495418,0.00021176,4]
[364618480,1749165034714,-440.0,0.0002124,2]
[364618481,1749165034725,-380.0,0.0002124,2]
[364618482,1749165034735,-440.0,0.0002124,2]
[364618483,1749165034745,-440.0,0.0002124,2]
[364618484,1749165034756,-440.0,0.00021253,2]
[364618485,1749165034766,-420.0,0.00021253,2]
[364618486,1749165034775,-440.0,0.00021253,2]
[364618487,1749165034786,-440.0,0.00021253,2]
[364618488,1749165034795,-442.38,0.00021253,2]
[364618489,1749165034805,-349.37482066,0.00021253,2]
[364618490,1749165034814,-259.6,0.00021253,2]
[364618491,1749165034825,-440.0,0.00021254,2]
[364618492,1749165034834,-232.44,0.00021254,2]
[364618493,1749165034843,-440.0,0.00021254,2]
[364618494,1749165034853,-440.0,0.00021254,2]
[364618495,1749165034862,-436.04,0.00021254,2]
[364618496,1749165034872,-430.0,0.00021255,2]
[364618497,1749165034882,-440.0,0.00021255,2]
[364618498,1749165034892,-430.0,0.00021255,2]
[364618499,1749165034902,-440.0,0.00021255,2]
[364618500,1749165034912,-440.0,0.00021255,2]
[364618501,1749165034922,-3000.0,0.000213,2]
[364618502,1749165034932,-3000.0,0.0002131,2]
[364618503,1749165034942,-522.87495418,0.00021314,5]
[364618504,1749165034952,-3000.0,0.0002132,2]
[364618505,1749165034962,-500.0,0.0002132,2]
[364618506,1749165034973,-3000.0,0.0002133,2]
[364618507,1749165034983,-500.0,0.00021339,2]
[364618508,1749165034992,-3000.0,0.0002134,2]
[364618509,1749165035002,-3000.0,0.0002135,2]
[364618510,1749165035013,-3000.0,0.0002136,2]
[364618511,1749165035023,-500.0,0.00021362,2]
[364618512,1749165035033,-3000.0,0.0002137,2]
[364618513,1749165035043,-3000.0,0.0002138,2]
[364618514,1749165035052,-3000.0,0.0002139,2]
[364618515,1749165035062,-3000.0,0.000214,2]
[364618516,1749165035074,-500.0,0.000214,2]
[364618517,1749165035084,-5295.772518,0.0002141,2]
[364618518,1749165035093,-522.87495418,0.00021452,5]
[364618519,1749165035103,-1414.75,0.000215,2]
[364618520,1749165035112,-440.0,0.00021514,2]
[364618521,1749165035122,-440.0,0.00021514,2]
[364618522,1749165035131,-155.0,0.00021514,2]
[364618523,1749165035140,-440.0,0.00021514,2]
[364618524,1749165035150,-440.0,0.00021527,2]
[364618525,1749165035159,-440.0,0.00021527,2]
[364618526,1749165035169,-440.0,0.00021527,2]
[364618527,1749165035179,-440.0,0.00021528,2]
[364618528,1749165035188,-440.0,0.00021528,2]
[364618529,1749165035197,-440.0,0.00021529,2]
[364618530,1749165035207,-440.0,0.00021529,2]
[364618531,1749165035217,-472.3,0.00021529,2]
[364618532,1749165035227,-522.87495418,0.0002159,5]
[364618533,1749165035236,-420.0,0.00021639,2]
[364618534,1749165035246,-522.87495418,0.00021728,5]
[364618535,1749165035256,-440.0,0.00021788,2]
[364618536,1749165035266,-440.0,0.00021788,2]
[364618537,1749165035276,-440.0,0.00021788,2]
[364618538,1749165035286,-29030.07242,0.00021798,2]
[364618539,1749165035296,-12675.11581177,0.00021799,2]
[364618540,1749165035306,-440.0,0.00021801,2]
[364618541,1749165035316,-379.61171324,0.00021801,2]
[364618542,1749165035326,-253.43594527,0.00021801,2]
[364618543,1749165035336,-440.0,0.00021802,2]
[364618544,1749165035345,-440.0,0.00021802,2]
[364618545,1749165035354,-221.08,0.00021803,2]
[364618546,1749165035363,-440.0,0.00021803,2]
[364618547,1749165035372,-522.87495418,0.00021866,6]
[364618548,1749165035382,-1000.0,0.00021868,2]
[364618549,1749165035391,-1442.14043958,0.000219,2]
[364618550,1749165035478,-1231.14956042,0.000219,2]
[364618551,1749165035488,-500.0,0.0002191,2]
[364618552,1749165035498,-522.87495418,0.00022003,6]
[364618553,1749165035507,-440.0,0.00022062,2]
[364618554,1749165035517,-225.4499525,0.00022062,2]
[364618555,1749165035527,-155.0,0.00022062,2]
[364618556,1749165035536,-440.0,0.00022062,2]
[364618557,1749165035546,-440.0,0.00022075,2]
[364618558,1749165035555,-440.0,0.00022076,2]
[364618559,1749165035564,-327.03,0.00022076,2]
[364618560,1749165035575,-440.0,0.00022077,2]
[364618561,1749165035584,-522.87495418,0.00022141,6]
[364618562,1749165035593,-522.87495418,0.00022279,6]
[364618563,1749165035603,-440.0,0.00022336,2]
[364618564,1749165035612,-440.0,0.00022336,2]
[364618565,1749165035621,-380.0,0.00022349,2]
[364618566,1749165035631,-440.0,0.0002235,2]
[364618567,1749165035640,-440.0,0.00022351,2]
[364618568,1749165035649,-1500.0,0.00022416,2]
[364618569,1749165035658,-522.87495418,0.00022417,7]
[364618570,1749165035667,-500.0,0.00022475,2]
[364618571,1749165035680,-500.0,0.00022475,2]
[364618572,1749165035689,-500.0,0.00022475,2]
[364618573,1749165035699,-500.0,0.00022475,2]
[364618574,1749165035710,-500.0,0.00022475,2]
[364618575,1749165035720,-500.0,0.00022475,2]
[364618576,1749165035729,-500.0,0.00022475,2]
[364618577,1749165035739,-500.0,0.00022475,2]
[364618578,1749165035747,-500.0,0.00022475,2]
[364618579,1749165035758,-500.0,0.00022475,2]
[364618580,1749165035767,-500.0,0.00022475,2]
[364618581,1749165035776,-446.14358159,0.00022475,2]
[364618582,1749165035785,-500.0,0.00022475,2]
[364618583,1749165035794,-500.0,0.00022475,2]
[364618584,1749165035803,-207.4,0.00022475,2]
[364618585,1749165035812,-255.0,0.000225,2]
[364618586,1749165035822,-522.87495418,0.00022555,7]
[364618587,1749165035831,-440.0,0.0002261,2]
[364618588,1749165035841,-440.0,0.0002261,2]
[364618589,1749165035851,-440.0,0.00022624,2]
[364618590,1749165035860,-440.0,0.00022625,2]
[364618591,1749165035869,-500.0,0.0002268,2]
[364618592,1749165035878,-522.87495418,0.00022693,7]
[364618593,1749165035887,-522.87495418,0.00022831,8]
[364618594,1749165035897,-440.0,0.00022884,2]
[364618595,1749165035906,-440.0,0.00022884,2]
[364618596,1749165035915,-440.0,0.00022898,2]
[364618597,1749165035924,-440.0,0.00022899,2]
[364618598,1749165035933,-2000.0,0.00022964,2]
[364618599,1749165035942,-522.87495418,0.00022969,8]
[364618600,1749165035951,-1414.75,0.00023,7]
[364618601,1749165035960,-522.87495418,0.00023107,8]
[364618602,1749165035969,-159.79694846,0.00023151,2]
[364618603,1749165035978,-440.0,0.00023158,2]
[364618604,1749165035987,-440.0,0.00023158,2]
[364618605,1749165035996,-440.0,0.00023172,2]
[364618606,1749165036005,-440.0,0.00023173,2]
[364618607,1749165036014,-2673.29,0.000232,7]
[364618608,1749165036024,-522.87495418,0.00023245,8]
[364618609,1749165036034,-7360.60695664,0.00023298,2]
[364618610,1749165036043,-5000.0,0.00023298,2]
[364618611,1749165036052,-5000.0,0.00023298,2]
[364618612,1749165036062,-5000.0,0.00023298,2]
[364618613,1749165036072,-5000.0,0.00023298,2]
[364618614,1749165036081,-522.87495418,0.00023383,9]
[364618615,1749165036091,-440.0,0.00023432,2]
[364618616,1749165036100,-440.0,0.00023432,2]
[364618617,1749165036109,-435.36,0.00023446,2]
[364618618,1749165036217,-440.0,0.00023447,2]
[364618619,1749165036227,-159.79694846,0.00023452,2]
[364618620,1749165036236,-326.4381982,0.00023452,2]
[364618621,1749165036245,-572.6068135,0.00023452,2]
[364618622,1749165036255,-2500.0,0.00023512,2]
[364618623,1749165036264,-522.87495418,0.00023521,9]
[364618624,1749165036274,-587.0,0.00023566,2]
[364618625,1749165036284,-522.87495418,0.00023659,9]
[364618626,1749165036294,-440.0,0.00023706,2]
[364618627,1749165036304,-168.74174254,0.00023706,2]
[364618628,1749165036314,-440.0,0.00023721,2]
[364618629,1749165036325,-159.79694846,0.00023753,2]
[364618630,1749165036334,-234.747,0.00023766,2]
[364618631,1749165036343,-405.0,0.00023766,2]
[364618632,1749165036353,-522.87495418,0.00023797,9]
[364618633,1749165036363,-504.17327,0.00023834,3]
[364618634,1749165036372,-215.0738,0.00023844,2]
[364618635,1749165036381,-522.87495418,0.00023934,10]
[364618636,1749165036391,-440.0,0.0002398,2]
[364618637,1749165036400,-440.0,0.00023995,2]
[364618638,1749165036410,-10283.78818143,0.00024,7]
[364618639,1749165036419,-229.48950782,0.00024,7]
[364618640,1749165036428,-12675.11581177,0.00024,7]
[364618641,1749165036438,-315.01552021,0.00024,7]
[364618642,1749165036448,-5000.0,0.00024022,2]
[364618643,1749165036458,-5000.0,0.00024022,2]
[364618644,1749165036468,-5000.0,0.00024022,2]
[364618645,1749165036477,-5000.0,0.00024022,2]
[364618646,1749165036486,-5000.0,0.00024022,2]
[364618647,1749165036495,-3000.0,0.0002406,2]
[364618648,1749165036504,-522.87495418,0.00024072,10]
[364618649,1749165036513,-800.0,0.00024119,2]
[364618650,1749165036523,-800.0,0.00024138,2]
[364618651,1749165036533,-318.55234644,0.00024174,2]
[364618652,1749165036544,-318.5523464,0.00024178,2]
[364618653,1749165036553,-318.5523464,0.00024182,2]
[364618654,1749165036563,-318.5523464,0.00024185,2]
[364618655,1749165036573,-318.5523464,0.00024189,2]
[364618656,1749165036582,-1414.75,0.000242,7]
[364618657,1749165036591,-522.87495418,0.0002421,10]
[364618658,1749165036601,-800.0,0.00024223,2]
[364618659,1749165036611,-440.0,0.00024254,2]
[364618660,1749165036621,-5000.0,0.00024261,2]
[364618661,1749165036631,-440.0,0.00024269,2]
[364618662,1749165036640,-369.90684858,0.00024273,2]
[364618663,1749165036649,-504.7554611,0.00024273,2]
[364618664,1749165036659,-500.0,0.00024273,2]
[364618665,1749165036668,-500.0,0.00024273,2]
[364618666,1749165036680,-503.27683097,0.00024273,2]
[364618667,1749165036690,-500.0,0.00024273,2]
[364618668,1749165036699,-600.0,0.00024273,2]
[364618669,1749165036709,-500.0,0.00024273,2]
[364618670,1749165036717,-500.0,0.00024273,2]
[364618671,1749165036728,-2000.0,0.00024273,2]
[364618672,1749165036736,-2000.0,0.00024273,2]
[364618673,1749165036745,-2000.0,0.00024273,2]
[364618674,1749165036757,-2000.0,0.00024273,2]
[364618675,1749165036766,-313.30853431,0.00024273,2]
[364618678,1749165038392,-1686.69146569,0.00024273,2]
[364618679,1749165038402,-2000.0,0.00024273,2]
[364618680,1749165038411,-2000.0,0.00024273,2]
[364618681,1749165038421,-2000.0,0.00024273,2]
[364618682,1749165038430,-2000.0,0.00024273,2]
[364618683,1749165038439,-2000.0,0.00024273,2]
[364618684,1749165038450,-2000.0,0.00024273,2]
[364618685,1749165038459,-2000.0,0.00024273,2]
[364618686,1749165038468,-2000.0,0.00024273,2]
[364618687,1749165038478,-2000.0,0.00024273,2]
[364618688,1749165038487,-2000.0,0.00024273,2]
[364618689,1749165038497,-2000.0,0.00024273,2]
[364618690,1749165038506,-978.66376269,0.00024273,2]
[364618691,1749165038515,-800.0,0.00024275,2]
[364618692,1749165038525,-151.0,0.0002428,7]
[364618693,1749165038535,-151.0,0.0002428,7]
[364618694,1749165038545,-239.63819,0.0002428,7]
[364618695,1749165038555,-151.0,0.00024282,7]
[364618696,1749165038565,-151.0,0.00024282,7]
[364618697,1749165038574,-151.0,0.00024282,7]
[364618698,1749165038584,-151.0,0.00024282,7]
[364618699,1749165038595,-152.866879,0.00024282,7]
[364618700,1749165038604,-151.0,0.00024282,7]
[364618701,1749165038615,-151.0,0.00024282,7]
[364618702,1749165038624,-151.0,0.00024282,7]
[364618703,1749165038634,-198.447798,0.00024282,7]
[364618704,1749165038644,-151.0,0.00024282,7]
[364618705,1749165038654,-151.0,0.00024282,7]
[364618706,1749165038663,-151.0,0.00024282,7]
[364618707,1749165038672,-151.0,0.00024282,7]
[364618708,1749165038686,-151.0,0.00024282,7]
[364618709,1749165038695,-151.0,0.00024282,7]
[364618710,1749165038705,-151.0,0.00024282,7]
[364618711,1749165038714,-151.0,0.00024282,7]
[364618712,1749165038725,-257.22076,0.00024282,7]
[364618713,1749165038735,-151.0,0.00024282,7]
[364618714,1749165038745,-151.0,0.00024282,7]
[364618715,1749165038755,-151.0,0.00024282,7]
[364618716,1749165038766,-151.0,0.00024282,7]
[364618717,1749165038776,-151.0,0.00024282,7]
[364618718,1749165038785,-159.80008,0.00024282,7]
[364618719,1749165038795,-151.0,0.00024282,7]
[364618720,1749165038804,-151.0,0.00024282,7]
[364618721,1749165038814,-151.0,0.00024282,7]
[364618722,1749165038824,-151.0,0.00024282,7]
[364618723,1749165038833,-151.0,0.00024282,7]
[364618724,1749165038843,-217.28055,0.00024282,7]
[364618725,1749165038852,-151.0,0.00024283,7]
[364618726,1749165038864,-151.0,0.00024283,7]
[364618727,1749165038874,-151.0,0.00024283,7]
[364618728,1749165038884,-151.0,0.00024289,7]
[364618729,1749165038893,-151.0,0.00024289,7]
[364618730,1749165038903,-151.0,0.00024289,7]
[364618731,1749165038912,-168.081542,0.00024289,7]
[364618732,1749165038922,-151.0,0.00024289,7]
[364618733,1749165038931,-297.136932,0.00024289,7]
[364618734,1749165038941,-151.0,0.00024289,7]
[364618735,1749165038951,-151.0,0.00024289,7]
[364618736,1749165038962,-159.592054,0.00024289,7]
[364618737,1749165038978,-274.376802,0.00024289,7]
[364618738,1749165038996,-274.376802,0.00024289,7]
[364618739,1749165039005,-274.376802,0.00024289,7]
[364618740,1749165039014,-274.376802,0.00024289,7]
[364618741,1749165039024,-274.376802,0.00024289,7]